{"text_format":"1","workbook":"xlsx","n_sheets":4,"sheets":["MRFC RWC ENTRY","Sheet2","Sheet3","Compatibility Report"],"not_rendered":{"charts":0,"images":1,"macros":0,"external_links":0,"defined_names":1,"comments":0,"pivot_tables":0},"unopened":[],"bounds":{"document_bytes":16777216,"sheet_cells":100000,"rows_first":2000,"rows_last":500,"rows_between":2000,"halvings":0,"cell_chars":16384,"cell_head_chars":4096},"cells_cut":0,"cells_raw":0,"read":"whole","date_system":"1900"}

{"sheet":"MRFC RWC ENTRY","index":0,"n_rows":124,"n_cols":177,"rows_kept":124,"cut":false,"hidden":false,"merged":[[16,4,16,5],[18,4,18,5],[16,7,16,9],[18,7,18,9]]}
[]
[null,null,null,"MRFC - Rugby World Cup Challenge"]
[null,null,null,"The Rules:"]
[null,null,null,"1.","40 points for correct winning team, less the difference between your predicted margin and actual winning margin "]
[null,null,null,null,"e.g. If you predict a Scotland win by 15 but they win by 25, you collect 30 points"]
[null,null,null,"2.","10 bonus points for correctly predicting the winning margin"]
[null,null,null,"3.","60 points for correctly predicting a draw"]
[null,null,null,"4.","100 points for correctly predicting tournament winner"]
[null,null,null,"5.","All  cells to be completed before Friday 9th September"]
[null,"www.morayrfc.co.uk",null,"6.","Winner is the person who collects to most points by the end of the Tournament"]
[]
[]
[]
[]
[]
[]
[null,null,null,null,"Your Name:"]
[]
[null,null,null,null,"Your Email :"]
[]
[null,"Date","Game","Pool","Match details",null,null,"Winning Team",null,"Winning Margin"]
[null,"Sat Sep 10",1,"B","Scotland v Romania"]
[null,"Sat Sep 10",2,"B","Argentina v England"]
[null,"Sun Sep 11",3,"C","Australia v Italy"]
[null,"Sun Sep 11",4,"D","South Africa v Wales"]
[null,"Wed Sep 14",5,"B","Scotland v Georgia"]
[null,"Thurs Sep 15",6,"C","Russia v USA"]
[null,"Sat Sep 17",7,"C","Australia v Ireland"]
[null,"Wed Sep 21",8,"A","Tonga v Japan"]
[null,"Sat Sep 24",9,"A","New Zealand v France"]
[null,"Sun Sep 25",10,"B","Argentina v Scotland"]
[null,"Wed Sep 28",11,"B","Georgia v Romania"]
[null,"Sat Oct 1",12,"B","England v Scotland"]
[null,"Sun Oct 2",13,"D","Wales v Fiji"]
[null,"Sun Oct 2",14,"C","Ireland v Italy"]
[]
[]
[null,null,null,null,"Rugby World Cup Winners"]
[]
[]
[]
[]
[null,"Sat Oct 8",15,null,"Quarter Final 1",null,null,"a"]
[null,"Sat Oct 8",16,null,"Quarter Final 2",null,null,"b"]
[null,"Sun Oct 9",17,null,"Quarter Final 3",null,null,"c"]
[null,"Sun Oct 9",18,null,"Quarter Final 4",null,null,"d"]
[]
[null,"Sat Oct 15",19,null,"Semi-Final 1",null,null,"f"]
[null,"Sun Oct 16",20,null,"Semi-Final 2",null,null,"g"]
[]
[null,"Sun Oct 23",21,null,"Final",null,null,"h"]
[]
[]
[]
[]
[]
[null,"Name",null,null,null,null,"RWC Winner",null,"email","Game 1","Margin",null,null,null,"Points",null,"Bonus","Game 2","Margin",null,null,null,"Points",null,"Bonus","Game 3","Margin",null,null,null,"Points",null,"Bonus","Game 4","Margin",null,null,null,"Points",null,"Bonus","Game 5","Margin",null,null,null,"Points",null,"Bonus","Game 6","Margin",null,null,null,"Points",null,"Bonus","Game 7","Margin",null,null,null,"Points",null,"Bonus","Game 8","Margin",null,null,null,"Points",null,"Bonus","Game 9","Margin",null,null,null,"Points",null,"Bonus","Game 10","Margin",null,null,null,"Points",null,"Bonus","Game 11","Margin",null,null,null,"Points",null,"Bonus","Game 12","Margin",null,null,null,"Points",null,"Bonus","Game 13","Margin",null,null,null,"Points",null,"Bonus","Game 14","Margin",null,null,null,"Points",null,"Bonus","Game 15","Margin",null,null,null,"Points",null,"Bonus","Game 16","Margin",null,null,null,"Points",null,"Bonus","Game 17","Margin",null,null,null,"Points",null,"Bonus","Game 18","Margin",null,null,null,"Points",null,"Bonus","Game 19 - SF1","Margin",null,null,null,"Points",null,"Bonus","Game 20 - SF2","Margin",null,null,null,"Points",null,"Bonus","Game 21 - Final","Margin",null,null,null,"Points",null,"Bonus"]
[null,{"$f":"H17","v":0},null,null,null,null,{"$f":"H38","v":0},null,{"$f":"H19","v":0},{"$f":"H22","v":0},{"$f":"J22","v":0},null,null,null,null,null,null,{"$f":"H23","v":0},{"$f":"J23","v":0},null,null,null,null,null,null,{"$f":"H24","v":0},{"$f":"J24","v":0},null,null,null,null,null,null,{"$f":"H25","v":0},{"$f":"J25","v":0},null,null,null,null,null,null,{"$f":"H26","v":0},{"$f":"J26","v":0},null,null,null,null,null,null,{"$f":"H27","v":0},{"$f":"J27","v":0},null,null,null,null,null,null,{"$f":"H28","v":0},{"$f":"J28","v":0},null,null,null,null,null,null,{"$f":"H29","v":0},{"$f":"J29","v":0},null,null,null,null,null,null,{"$f":"H30","v":0},{"$f":"J30","v":0},null,null,null,null,null,null,{"$f":"H31","v":0},{"$f":"J31","v":0},null,null,null,null,null,null,{"$f":"H32","v":0},{"$f":"J32","v":0},null,null,null,null,null,null,{"$f":"H33","v":0},{"$f":"J33","v":0},null,null,null,null,null,null,{"$f":"H34","v":0},{"$f":"J34","v":0},null,null,null,null,null,null,{"$f":"H35","v":0},{"$f":"J35","v":0},null,null,null,null,null,null,{"$f":"H46","v":"d"},{"$f":"J43","v":0},null,null,null,null,null,null,{"$f":"H48","v":"f"},{"$f":"J44","v":0},null,null,null,null,null,null,{"$f":"H49","v":"g"},{"$f":"J45","v":0},null,null,null,null,null,null,{"$f":"H51","v":"h"},{"$f":"J46","v":0},null,null,null,null,null,null,{"$f":"H48","v":"f"},{"$f":"J48","v":0},null,null,null,null,null,null,{"$f":"H49","v":"g"},{"$f":"J49","v":0},null,null,null,null,null,null,{"$f":"H51","v":"h"},{"$f":"J51","v":0}]
[]
[]
[]
[]
[]
[]
[]
[]
[]
[]
[]
[]
[]
[]
[]
[]
[]
[]
[]
[]
[]
[]
[]
[]
[]
[]
[null,"New Zealand","Tonga","Draw","New Zealand"]
[null,"Scotland","Romania","Draw","Australia"]
[null,"Fiji","Nambia","Draw","South Africa"]
[null,"France","Japan","Draw","France"]
[null,"Argentina","England","Draw","England"]
[null,"Australia","Italy","Draw","Scotland"]
[null,"Ireland","USA","Draw","Wales"]
[null,"South Africa","Wales","Draw","Ireland"]
[null,"Samoa","Nambia","Draw","Argentina"]
[null,"Tonga","Canada","Draw","Italy"]
[null,"Scotland","Georgia","Draw","Fiji"]
[null,"Russia","USA","Draw","Samoa"]
[null,"New Zealand","Japan","Draw","Tonga"]
[null,"Argentina","Romania","Draw","Russia"]
[null,"South Africa","Fiji","Draw","Romania"]
[null,"Australia","Ireland","Draw","Canada"]
[null,"Wales","Samoa","Draw","USA"]
[null,"England","Georgia","Draw","Georgia"]
[null,"France","Canada","Draw","Nambia"]
[null,"Italy","Russia","Draw","Japan"]
[null,"Tonga","Japan","Draw"]
[null,"South Africa","Nambia","Draw"]
[null,"Australia","USA","Draw"]
[null,"England","Romania","Draw"]
[null,"New Zealand","France","Draw"]
[null,"Fiji","Samoa","Draw"]
[null,"Ireland","Russia","Draw"]
[null,"Argentina","Scotland","Draw"]
[null,"Wales","Nambia","Draw"]
[null,"Canada","Japan","Draw"]
[null,"Italy","USA","Draw"]
[null,"Georgia","Romania","Draw"]
[null,"South Africa","Samoa","Draw"]
[null,"Australia","Russia","Draw"]
[null,"France","Tonga","Draw"]
[null,"England","Scotland","Draw"]
[null,"Argentina","Georgia","Draw"]
[null,"New Zealand","Canada","Draw"]
[null,"Wales","Fiji","Draw"]
[null,"Ireland","Italy","Draw"]

{"sheet":"Sheet2","index":1,"n_rows":0,"n_cols":0,"rows_kept":0,"cut":false,"hidden":false,"merged":[]}

{"sheet":"Sheet3","index":2,"n_rows":0,"n_cols":0,"rows_kept":0,"cut":false,"hidden":false,"merged":[]}

{"sheet":"Compatibility Report","index":3,"n_rows":20,"n_cols":5,"rows_kept":20,"cut":false,"hidden":false,"merged":[]}
[null,"Compatibility Report for MRFC WORLD CUP CHALLENGE ENTRY FORM.xls"]
[null,"Run on 12/03/2011 21:12"]
[]
[null,"The following features in this workbook are not supported by earlier versions of Excel. These features may be lost or degraded when you save this workbook in an earlier file format."]
[]
[null,"Significant loss of functionality",null,null,"# of occurrences"]
[]
[null,"Some cells have more conditional formats than are supported by the selected file format. Only the first three conditions will be displayed in earlier versions of Excel.",null,null,1]
[null,null,null,null,"'MRFC RWC ENTRY'!H22:H51"]
[]
[null,"Some cells have overlapping conditional formatting ranges. Earlier versions of Excel will not evaluate all of the conditional formatting rules on the overlapping cells. The overlapping cells will show different conditional formatting.",null,null,1]
[null,null,null,null,"'MRFC RWC ENTRY'!H22:H51"]
[]
[null,"One or more cells in this workbook contain a conditional formatting type that is not supported in earlier versions of Excel, such as data bars, color scales, or icon sets.",null,null,1]
[null,null,null,null,"'MRFC RWC ENTRY'!J22:J51"]
[]
[]
[null,"Minor loss of fidelity"]
[]
[null,"Some cells or styles in this workbook contain formatting that is not supported by the selected file format. These formats will be converted to the closest format available.",null,null,6]